[Event "*** MasterClass Titled Tuesday Blitz"]
[Site "Chess.com"]
[Date "2017.08.01"]
[Round "2"]
[White "TomasKapitanchuk"]
[Black "guilty93"]
[Result "0-1"]
[WhiteElo "2193"]
[BlackElo "2382"]
[TimeControl "180+2"]
[EndTime "13:25:00 PDT"]
[Termination "guilty93 won on time"]

1. e4 {[%clk 0:02:52.2]} 1... e6 {[%clk 0:02:43]} 2. d3 {[%clk 0:02:51.6]} 2...
d5 {[%clk 0:02:43.2]} 3. Nd2 {[%clk 0:02:52.9]} 3... c5 {[%clk 0:02:42.7]} 4.
Ngf3 {[%clk 0:02:53.3]} 4... Nc6 {[%clk 0:02:44.3]} 5. g3 {[%clk 0:02:53.8]}
5... Bd6 {[%clk 0:02:44.1]} 6. Bg2 {[%clk 0:02:54.5]} 6... Nge7 {[%clk
0:02:45.7]} 7. O-O {[%clk 0:02:55.3]} 7... O-O {[%clk 0:02:46.8]} 8. Re1 {[%clk
0:02:56.3]} 8... Ng6 {[%clk 0:02:46.3]} 9. b3 {[%clk 0:02:54]} 9... b6 {[%clk
0:02:44.2]} 10. Bb2 {[%clk 0:02:54.4]} 10... Bb7 {[%clk 0:02:45.5]} 11. c4
{[%clk 0:02:48.8]} 11... d4 {[%clk 0:02:44.3]} 12. a3 {[%clk 0:02:45.4]} 12...
f5 {[%clk 0:02:42]} 13. exf5 {[%clk 0:02:38.2]} 13... exf5 {[%clk 0:02:41.7]}
14. Qe2 {[%clk 0:02:37.4]} 14... Kh8 {[%clk 0:02:40.4]} 15. Rad1 {[%clk
0:02:29.8]} 15... a5 {[%clk 0:02:35.5]} 16. Qf1 {[%clk 0:02:09]} 16... Qd7
{[%clk 0:02:33.9]} 17. Ng5 {[%clk 0:02:06.5]} 17... Rae8 {[%clk 0:02:28.8]} 18.
Bd5 {[%clk 0:02:01.2]} 18... Nce5 {[%clk 0:02:27.7]} 19. f4 {[%clk 0:01:48.5]}
19... Ng4 {[%clk 0:02:02.6]} 20. Rxe8 {[%clk 0:01:47.4]} 20... Qxe8 {[%clk
0:01:43.7]} 21. Bxb7 {[%clk 0:01:40.3]} 21... Qe3+ {[%clk 0:01:44]} 22. Kg2
{[%clk 0:01:17.6]} 22... Bxf4 {[%clk 0:01:43.2]} 23. Ngf3 {[%clk 0:01:05.1]}
23... Qe7 {[%clk 0:01:42.9]} 24. Kh1 {[%clk 0:00:41.8]} 24... Bxd2 {[%clk
0:01:42]} 25. Bd5 {[%clk 0:00:32.5]} 25... Be3 {[%clk 0:01:39.6]} 26. Kg2 {[%clk
0:00:29.6]} 26... Bc1 {[%clk 0:01:37.8]} 27. Bxc1 {[%clk 0:00:29.3]} 27... f4
{[%clk 0:01:35.2]} 28. h3 {[%clk 0:00:28.1]} 28... Ne3+ {[%clk 0:01:26.8]} 29.
Bxe3 {[%clk 0:00:28.4]} 29... fxe3 {[%clk 0:01:21.5]} 30. Qe2 {[%clk 0:00:28.9]}
30... Ne5 {[%clk 0:01:21.6]} 31. Rf1 {[%clk 0:00:28.4]} 31... Nd7 {[%clk
0:01:21.8]} 32. Nh4 {[%clk 0:00:28.3]} 32... Nf6 {[%clk 0:01:22.6]} 33. Nf5
{[%clk 0:00:28.5]} 33... Qe5 {[%clk 0:01:23.9]} 34. Nh4 {[%clk 0:00:20.9]} 34...
g6 {[%clk 0:01:23.9]} 35. Bf3 {[%clk 0:00:20.9]} 35... Kg7 {[%clk 0:01:24.6]}
36. Rb1 {[%clk 0:00:21.6]} 36... g5 {[%clk 0:01:25.7]} 37. b4 {[%clk 0:00:19]}
37... gxh4 {[%clk 0:01:26.5]} 38. gxh4 {[%clk 0:00:20.9]} 38... axb4 {[%clk
0:01:25.1]} 39. axb4 {[%clk 0:00:22.8]} 39... Rg8 {[%clk 0:01:24.3]} 40. bxc5
{[%clk 0:00:23.4]} 40... bxc5 {[%clk 0:01:26.2]} 41. Rb7+ {[%clk 0:00:24.2]}
41... Kh6+ {[%clk 0:01:25.8]} 42. Kf1 {[%clk 0:00:25]} 42... Rg3 {[%clk
0:01:26.3]} 43. Bg2 {[%clk 0:00:20.9]} 43... Qf4+ {[%clk 0:01:27.1]} 44. Kg1
{[%clk 0:00:22.2]} 44... Qxh4 {[%clk 0:01:27.8]} 45. Rb6 {[%clk 0:00:23.1]}
45... Rg6 {[%clk 0:01:24.2]} 46. Qf1 {[%clk 0:00:23.6]} 46... Qg5 {[%clk
0:01:25.1]} 47. Rc6 {[%clk 0:00:23.1]} 47... Nh5 {[%clk 0:01:26]} 48. Rxg6+
{[%clk 0:00:23.9]} 48... Qxg6 {[%clk 0:01:26.8]} 49. Qf3 {[%clk 0:00:20.5]}
49... Qg5 {[%clk 0:01:25.5]} 50. Qc6+ {[%clk 0:00:21.2]} 50... Nf6 {[%clk
0:01:26.5]} 51. Kf1 {[%clk 0:00:21.6]} 51... Qf4+ {[%clk 0:01:27.7]} 52. Bf3
{[%clk 0:00:22]} 52... Kg5 {[%clk 0:01:27.4]} 53. Qxc5+ {[%clk 0:00:23.2]} 53...
Kh4 {[%clk 0:01:27.9]} 54. Ke2 {[%clk 0:00:23.5]} 54... Kg3 {[%clk 0:01:28.9]}
55. Qc6 {[%clk 0:00:17.8]} 55... Kh2 {[%clk 0:01:29.8]} 56. Qe6 {[%clk
0:00:14.8]} 56... Kg1 {[%clk 0:01:29.6]} 57. h4 {[%clk 0:00:12.7]} 57... Qxh4
{[%clk 0:01:28.5]} 58. Kd1 {[%clk 0:00:11]} 58... Kf2 {[%clk 0:01:28.1]} 59. Qf5
{[%clk 0:00:09.6]} 59... Kg1 {[%clk 0:01:25.2]} 60. Be2 {[%clk 0:00:10.5]} 60...
Qf2 {[%clk 0:01:25]} 61. Qh3 {[%clk 0:00:11.4]} 61... Qg2 {[%clk 0:01:23]} 62.
Qxg2+ {[%clk 0:00:10.7]} 62... Kxg2 {[%clk 0:01:24]} 63. c5 {[%clk 0:00:12.6]}
63... Nd5 {[%clk 0:01:24.5]} 64. c6 {[%clk 0:00:12.5]} 64... Kf2 {[%clk
0:01:25.4]} 65. Bg4 {[%clk 0:00:13.5]} 65... Nc7 {[%clk 0:01:23.2]} 66. Kc2
{[%clk 0:00:14]} 66... e2 {[%clk 0:01:23.7]} 67. Bxe2 {[%clk 0:00:14.8]} 67...
Kxe2 {[%clk 0:01:25.6]} 0-1

[Event "*** MasterClass Titled Tuesday Blitz"]
[Site "Chess.com"]
[Date "2017.08.01"]
[Round "2"]
[White "penguingm1"]
[Black "H16"]
[Result "0-1"]
[WhiteElo "2589"]
[BlackElo "2296"]
[TimeControl "180+2"]
[EndTime "13:25:01 PDT"]
[Termination "H16 won by resignation"]

1. d4 {[%clk 0:03:01.9]} 1... Nf6 {[%clk 0:03:00.5]} 2. c4 {[%clk 0:03:02.2]}
2... g6 {[%clk 0:03:01.5]} 3. f3 {[%clk 0:03:02.8]} 3... Nc6 {[%clk 0:03:03.2]}
4. d5 {[%clk 0:03:03.6]} 4... Ne5 {[%clk 0:03:04.5]} 5. e4 {[%clk 0:03:05.5]}
5... d6 {[%clk 0:03:06]} 6. Nc3 {[%clk 0:03:07.4]} 6... Bg7 {[%clk 0:03:07.5]}
7. f4 {[%clk 0:03:07.2]} 7... Ned7 {[%clk 0:03:08.3]} 8. Nh3 {[%clk 0:03:08.6]}
8... O-O {[%clk 0:03:02.4]} 9. Be2 {[%clk 0:03:09.9]} 9... Nc5 {[%clk
0:02:51.9]} 10. Nf2 {[%clk 0:03:09.4]} 10... e6 {[%clk 0:02:53.4]} 11. O-O
{[%clk 0:03:08.1]} 11... Re8 {[%clk 0:02:48.6]} 12. Bf3 {[%clk 0:03:08.7]} 12...
exd5 {[%clk 0:02:38.3]} 13. cxd5 {[%clk 0:03:10.6]} 13... a5 {[%clk 0:02:39.4]}
14. Re1 {[%clk 0:03:10.7]} 14... h5 {[%clk 0:02:24.3]} 15. Be3 {[%clk
0:03:08.1]} 15... b6 {[%clk 0:02:25.3]} 16. Bd4 {[%clk 0:03:06.3]} 16... Ba6
{[%clk 0:02:08]} 17. e5 {[%clk 0:02:46.8]} 17... Nfd7 {[%clk 0:02:09]} 18. e6
{[%clk 0:02:42.8]} 18... Nf6 {[%clk 0:02:10.3]} 19. exf7+ {[%clk 0:02:38.4]}
19... Kxf7 {[%clk 0:02:11.1]} 20. Nh3 {[%clk 0:02:39.6]} 20... Nh7 {[%clk
0:01:57.5]} 21. Bxc5 {[%clk 0:02:35.7]} 21... bxc5 {[%clk 0:01:41.9]} 22. Re6
{[%clk 0:02:36.1]} 22... Rb8 {[%clk 0:01:21.2]} 23. Qc2 {[%clk 0:01:42.2]} 23...
Bd4+ {[%clk 0:01:15.8]} 24. Kh1 {[%clk 0:01:42.6]} 24... Nf8 {[%clk 0:01:16.8]}
25. Ng5+ {[%clk 0:01:36]} 25... Kg7 {[%clk 0:01:15.1]} 26. Rae1 {[%clk
0:00:51.5]} 26... Qd7 {[%clk 0:00:50.6]} 27. f5 {[%clk 0:00:36.6]} 27... Bf6
{[%clk 0:00:36.4]} 28. Nge4 {[%clk 0:00:26.9]} 28... Nxe6 {[%clk 0:00:25.7]} 29.
dxe6 {[%clk 0:00:27]} 29... Qd8 {[%clk 0:00:25.3]} 30. Nxf6 {[%clk 0:00:24.7]}
30... Qxf6 {[%clk 0:00:23.8]} 31. Nd5 {[%clk 0:00:25.6]} 31... Qxf5 {[%clk
0:00:20]} 32. Qc3+ {[%clk 0:00:26.7]} 32... Kh6 {[%clk 0:00:19.5]} 33. Nxc7
{[%clk 0:00:24.1]} 33... Re7 {[%clk 0:00:16.3]} 34. Qe3+ {[%clk 0:00:19.3]}
34... g5 {[%clk 0:00:12.7]} 35. Nd5 {[%clk 0:00:19.6]} 35... Ree8 {[%clk
0:00:07.9]} 36. e7 {[%clk 0:00:20.9]} 36... Bb7 {[%clk 0:00:07]} 37. Nc7 {[%clk
0:00:19.6]} 37... Bxf3 {[%clk 0:00:06.1]} 38. gxf3 {[%clk 0:00:21.1]} 38... Qf6
{[%clk 0:00:06]} 39. h4 {[%clk 0:00:21.2]} 39... Kg6 {[%clk 0:00:06.4]} 40. hxg5
{[%clk 0:00:17.1]} 40... Qf5 {[%clk 0:00:06.5]} 41. Kg1 {[%clk 0:00:17.6]} 41...
Qxg5+ {[%clk 0:00:06.8]} 42. Qxg5+ {[%clk 0:00:18.6]} 42... Kxg5 {[%clk
0:00:08.7]} 43. Nxe8 {[%clk 0:00:17.3]} 43... Rxe8 {[%clk 0:00:10.6]} 44. Re6
{[%clk 0:00:18.4]} 44... h4 {[%clk 0:00:11.1]} 45. Kg2 {[%clk 0:00:17]} 45...
Kf4 {[%clk 0:00:12.3]} 46. Re4+ {[%clk 0:00:15.4]} 46... Kf5 {[%clk 0:00:13.4]}
47. Kh3 {[%clk 0:00:17]} 47... d5 {[%clk 0:00:14.2]} 48. Re1 {[%clk 0:00:17.2]}
48... d4 {[%clk 0:00:15.3]} 49. Kxh4 {[%clk 0:00:18.1]} 49... Kf6 {[%clk
0:00:14.7]} 50. Rc1 {[%clk 0:00:18.5]} 50... Rxe7 {[%clk 0:00:11.2]} 51. Rxc5
{[%clk 0:00:19.5]} 51... Rd7 {[%clk 0:00:12]} 52. Rc2 {[%clk 0:00:20.2]} 52...
d3 {[%clk 0:00:12.4]} 53. Rd2 {[%clk 0:00:21.6]} 53... Ke5 {[%clk 0:00:14]} 54.
Kg3 {[%clk 0:00:23.2]} 54... Kd4 {[%clk 0:00:15.1]} 55. Kf2 {[%clk 0:00:24.8]}
55... Rh7 {[%clk 0:00:16.4]} 56. Kg3 {[%clk 0:00:25.7]} 56... Rg7+ {[%clk
0:00:17.7]} 57. Kf2 {[%clk 0:00:24.4]} 57... Rh7 {[%clk 0:00:19.1]} 58. Kg3
{[%clk 0:00:18.4]} 58... Ke3 {[%clk 0:00:19.6]} 59. Rd1 {[%clk 0:00:15.5]} 59...
Rg7+ {[%clk 0:00:20.2]} 60. Kh4 {[%clk 0:00:14.6]} 60... Ke2 {[%clk 0:00:20.5]}
61. Rh1 {[%clk 0:00:13.2]} 61... Rh7+ {[%clk 0:00:19.3]} 0-1

[Event "*** MasterClass Titled Tuesday Blitz"]
[Site "Chess.com"]
[Date "2017.08.01"]
[Round "2"]
[White "dretch"]
[Black "BilodeauA"]
[Result "1-0"]
[WhiteElo "2513"]
[BlackElo "2596"]
[TimeControl "180+2"]
[EndTime "13:25:05 PDT"]
[Termination "dretch won by checkmate"]

1. d4 {[%clk 0:03:02]} 1... d5 {[%clk 0:03:00.1]} 2. c4 {[%clk 0:03:02.3]} 2...
dxc4 {[%clk 0:03:02]} 3. e3 {[%clk 0:03:02.6]} 3... e5 {[%clk 0:03:02.4]} 4.
Bxc4 {[%clk 0:03:03.3]} 4... Nc6 {[%clk 0:03:03.3]} 5. Nf3 {[%clk 0:03:02.7]}
5... e4 {[%clk 0:03:04.2]} 6. Nfd2 {[%clk 0:03:01.3]} 6... Qg5 {[%clk
0:03:05.8]} 7. Nxe4 {[%clk 0:02:35.4]} 7... Qxg2 {[%clk 0:03:05.4]} 8. Ng3
{[%clk 0:02:36.6]} 8... Nf6 {[%clk 0:03:07]} 9. Bf1 {[%clk 0:02:28.3]} 9... Qd5
{[%clk 0:03:07.1]} 10. Nc3 {[%clk 0:02:29.1]} 10... Bb4 {[%clk 0:03:08.7]} 11.
Bd2 {[%clk 0:02:29.4]} 11... Qd8 {[%clk 0:03:09.2]} 12. Bc4 {[%clk 0:02:22.2]}
12... O-O {[%clk 0:03:07.1]} 13. Qb3 {[%clk 0:02:18.4]} 13... Qe7 {[%clk
0:02:46.3]} 14. O-O-O {[%clk 0:02:16.6]} 14... Na5 {[%clk 0:02:45.3]} 15. Qc2
{[%clk 0:01:53.4]} 15... Nxc4 {[%clk 0:02:44.9]} 16. Rhg1 {[%clk 0:01:53.6]}
16... g6 {[%clk 0:02:39.2]} 17. Be1 {[%clk 0:01:52]} 17... Bg4 {[%clk
0:02:38.7]} 18. Rd3 {[%clk 0:01:50.4]} 18... Nd6 {[%clk 0:02:32.8]} 19. h3
{[%clk 0:01:44.9]} 19... Bf3 {[%clk 0:02:27.6]} 20. e4 {[%clk 0:01:39.3]} 20...
Bxe4 {[%clk 0:02:24.2]} 21. Ncxe4 {[%clk 0:01:38.4]} 21... Ndxe4 {[%clk
0:02:25.3]} 22. Re3 {[%clk 0:01:38.6]} 22... Rfe8 {[%clk 0:02:08.2]} 23. f3
{[%clk 0:01:29.8]} 23... Nd5 {[%clk 0:01:46]} 24. Rxe4 {[%clk 0:01:29.7]} 24...
Qg5+ {[%clk 0:01:46.9]} 25. Bd2 {[%clk 0:01:20.4]} 25... Bxd2+ {[%clk
0:01:45.3]} 26. Qxd2 {[%clk 0:01:22.4]} 26... Qxd2+ {[%clk 0:01:44.4]} 27. Kxd2
{[%clk 0:01:24.4]} 27... Kf8 {[%clk 0:01:43.3]} 28. a3 {[%clk 0:01:24]} 28... f6
{[%clk 0:01:44.3]} 29. Rc1 {[%clk 0:01:23.4]} 29... c6 {[%clk 0:01:44.7]} 30.
Ne2 {[%clk 0:01:23.1]} 30... f5 {[%clk 0:01:43]} 31. Rxe8+ {[%clk 0:01:19.1]}
31... Rxe8 {[%clk 0:01:43]} 32. Rc5 {[%clk 0:01:21.1]} 32... Ke7 {[%clk
0:01:41.1]} 33. Nc1 {[%clk 0:01:18.7]} 33... Kd6 {[%clk 0:01:41.4]} 34. Nd3
{[%clk 0:01:19.8]} 34... Re7 {[%clk 0:01:36]} 35. b4 {[%clk 0:01:18]} 35... a6
{[%clk 0:01:36.1]} 36. Ne5 {[%clk 0:01:18.2]} 36... Nf4 {[%clk 0:01:32.7]} 37.
h4 {[%clk 0:01:19.5]} 37... Ne6 {[%clk 0:01:29.4]} 38. Nc4+ {[%clk 0:01:17.7]}
38... Kd7 {[%clk 0:01:27.5]} 39. Nb6+ {[%clk 0:01:18.7]} 39... Kd8 {[%clk
0:01:10.2]} 40. Rc3 {[%clk 0:01:14.3]} 40... Nf4 {[%clk 0:01:08.6]} 41. Nc4
{[%clk 0:01:07.2]} 41... Re2+ {[%clk 0:01:08.5]} 42. Kd1 {[%clk 0:01:08.6]}
42... Rh2 {[%clk 0:01:09.3]} 43. Na5 {[%clk 0:01:04.8]} 43... Kc7 {[%clk
0:01:09]} 44. Re3 {[%clk 0:01:05.3]} 44... Nd5 {[%clk 0:01:08.5]} 45. Re8 {[%clk
0:01:06.2]} 45... Rxh4 {[%clk 0:01:09.4]} 46. Rf8 {[%clk 0:01:05.5]} 46... Rxd4+
{[%clk 0:01:08.8]} 47. Ke1 {[%clk 0:01:06.9]} 47... Nf4 {[%clk 0:01:08.5]} 48.
Kf2 {[%clk 0:01:03.8]} 48... Rd7 {[%clk 0:01:05.8]} 49. Kg3 {[%clk 0:01:04.6]}
49... Ne6 {[%clk 0:01:06.2]} 50. Re8 {[%clk 0:01:04.6]} 50... Nd4 {[%clk
0:01:04.6]} 51. Nc4 {[%clk 0:01:02.7]} 51... Ne2+ {[%clk 0:00:49.6]} 52. Rxe2
{[%clk 0:01:02.8]} 52... Kd8 {[%clk 0:00:40.7]} 53. Ne5 {[%clk 0:00:59.9]} 53...
Rd1 {[%clk 0:00:41.5]} 54. Kf4 {[%clk 0:00:59.4]} 54... Kc7 {[%clk 0:00:42]} 55.
Rh2 {[%clk 0:00:59]} 55... Ra1 {[%clk 0:00:35.4]} 56. Rxh7+ {[%clk 0:00:58.1]}
56... Kb8 {[%clk 0:00:37.1]} 57. Nc4 {[%clk 0:00:52.8]} 57... Rf1 {[%clk
0:00:37.1]} 58. Na5 {[%clk 0:00:49.4]} 58... g5+ {[%clk 0:00:38.2]} 59. Kxg5
{[%clk 0:00:48.2]} 59... Rxf3 {[%clk 0:00:38.8]} 60. a4 {[%clk 0:00:49.2]} 60...
Ra3 {[%clk 0:00:37.2]} 61. Rxb7+ {[%clk 0:00:49.5]} 61... Kc8 {[%clk 0:00:36.9]}
62. Kxf5 {[%clk 0:00:48.9]} 62... Rxa4 {[%clk 0:00:38]} 63. Rb6 {[%clk
0:00:49.8]} 63... Kd7 {[%clk 0:00:37.5]} 64. Ke5 {[%clk 0:00:49.8]} 64... Ra1
{[%clk 0:00:37.4]} 65. Rb7+ {[%clk 0:00:50.2]} 65... Kc8 {[%clk 0:00:38]} 66.
Ra7 {[%clk 0:00:49.8]} 66... c5 {[%clk 0:00:35]} 67. Kd6 {[%clk 0:00:41.5]}
67... Rd1+ {[%clk 0:00:25.8]} 68. Kxc5 {[%clk 0:00:41.3]} 68... Kb8 {[%clk
0:00:25.1]} 69. Nc6+ {[%clk 0:00:41.1]} 69... Kc8 {[%clk 0:00:26.4]} 70. Kb6
{[%clk 0:00:41.9]} 70... Rd7 {[%clk 0:00:25.2]} 71. Ra8# {[%clk 0:00:42.6]} 1-0

[Event "*** MasterClass Titled Tuesday Blitz"]
[Site "Chess.com"]
[Date "2017.08.01"]
[Round "2"]
[White "Al_Shima"]
[Black "Rumpel-VK"]
[Result "1/2-1/2"]
[WhiteElo "2389"]
[BlackElo "2405"]
[TimeControl "180+2"]
[EndTime "13:25:31 PDT"]
[Termination "Game drawn by agreement"]

1. b3 {[%clk 0:03:01.9]} 1... d5 {[%clk 0:02:58.9]} 2. Bb2 {[%clk 0:03:03]} 2...
Nf6 {[%clk 0:02:55.5]} 3. e3 {[%clk 0:03:03.7]} 3... Bg4 {[%clk 0:02:44.9]} 4.
Be2 {[%clk 0:03:02.8]} 4... Bxe2 {[%clk 0:02:45.1]} 5. Qxe2 {[%clk 0:03:04.7]}
5... c6 {[%clk 0:02:45.4]} 6. f4 {[%clk 0:03:04.4]} 6... g6 {[%clk 0:02:42.9]}
7. Nf3 {[%clk 0:03:00.7]} 7... Bg7 {[%clk 0:02:43.8]} 8. d3 {[%clk 0:03:01.1]}
8... O-O {[%clk 0:02:43.1]} 9. Nbd2 {[%clk 0:03:00.4]} 9... a5 {[%clk 0:02:43]}
10. a4 {[%clk 0:03:01]} 10... Na6 {[%clk 0:02:43.3]} 11. O-O {[%clk 0:02:59.2]}
11... Nb4 {[%clk 0:02:32.4]} 12. Rac1 {[%clk 0:02:59.5]} 12... Na2 {[%clk
0:02:33.2]} 13. Ra1 {[%clk 0:03:00]} 13... Nb4 {[%clk 0:02:34.1]} 14. Rac1
{[%clk 0:03:01.1]} 14... Rc8 {[%clk 0:02:31.3]} 15. Ne5 {[%clk 0:02:54.2]} 15...
Nd7 {[%clk 0:02:24.4]} 16. Ndf3 {[%clk 0:02:53.7]} 16... Nxe5 {[%clk 0:02:23.6]}
17. Bxe5 {[%clk 0:02:53]} 17... f6 {[%clk 0:02:18.3]} 18. Bc3 {[%clk 0:02:52.8]}
18... Qd7 {[%clk 0:02:10.1]} 19. Bxb4 {[%clk 0:02:50.8]} 19... axb4 {[%clk
0:02:10.5]} 20. e4 {[%clk 0:02:51.5]} 20... e6 {[%clk 0:02:09.2]} 21. Rce1
{[%clk 0:02:48]} 21... Qd6 {[%clk 0:02:07.9]} 22. e5 {[%clk 0:02:48.3]} 22...
fxe5 {[%clk 0:02:02.9]} 23. Nxe5 {[%clk 0:02:48]} 23... Bxe5 {[%clk 0:02:02.9]}
24. Qxe5 {[%clk 0:02:48.3]} 24... Qxe5 {[%clk 0:02:00.9]} 25. Rxe5 {[%clk
0:02:45.8]} 25... Rf6 {[%clk 0:02:00.5]} 26. Rfe1 {[%clk 0:02:42.9]} 26... Kf7
{[%clk 0:01:56.3]} 27. g3 {[%clk 0:02:42.7]} 27... Ke7 {[%clk 0:01:56.1]} 28. h4
{[%clk 0:02:27.1]} 28... Kd6 {[%clk 0:01:52.8]} 29. Kf2 {[%clk 0:02:19]} 29...
b5 {[%clk 0:01:41.6]} 30. axb5 {[%clk 0:02:15.9]} 30... cxb5 {[%clk 0:01:42]}
31. R5e2 {[%clk 0:02:16.4]} 31... h6 {[%clk 0:01:39.7]} 32. Ra1 {[%clk
0:02:15.7]} 32... g5 {[%clk 0:01:38.3]} 33. hxg5 {[%clk 0:02:15.8]} 33... hxg5
{[%clk 0:01:39.2]} 34. Ke3 {[%clk 0:02:16.8]} 34... gxf4+ {[%clk 0:01:39.4]} 35.
gxf4 {[%clk 0:02:18.7]} 35... Rh8 {[%clk 0:01:33.9]} 36. Ra6+ {[%clk 0:02:14.3]}
36... Kd7 {[%clk 0:01:34.4]} 37. Rg2 {[%clk 0:01:45]} 37... Rh3+ {[%clk
0:01:29.7]} 38. Kd2 {[%clk 0:01:44.5]} 38... Ke7 {[%clk 0:00:51.8]} 39. Rg7+
{[%clk 0:01:35.3]} 39... Kf8 {[%clk 0:00:52.7]} 40. Rb7 {[%clk 0:01:35.6]} 40...
Kg8 {[%clk 0:00:50]} 41. Ra8+ {[%clk 0:01:27.2]} 41... Rf8 {[%clk 0:00:50.3]}
42. Rxf8+ {[%clk 0:01:28.8]} 42... Kxf8 {[%clk 0:00:51.1]} 43. Rxb5 {[%clk
0:01:30.4]} 43... Rh2+ {[%clk 0:00:48.8]} 44. Kc1 {[%clk 0:01:31.5]} 44... Ke7
{[%clk 0:00:49]} 45. Rxb4 {[%clk 0:01:32.3]} 45... Kd6 {[%clk 0:00:50.3]} 46.
Kb2 {[%clk 0:01:31.6]} 46... Rf2 {[%clk 0:00:51.2]} 47. Kc3 {[%clk 0:01:24.9]}
47... Kc5 {[%clk 0:00:51.7]} 48. Ra4 {[%clk 0:01:24.8]} 48... Kb5 {[%clk
0:00:44.5]} 49. Kb2 {[%clk 0:01:17.8]} 49... Rf1 {[%clk 0:00:40.3]} 50. Kc3
{[%clk 0:01:16.1]} 50... Rf2 {[%clk 0:00:40.9]} 51. Rd4 {[%clk 0:01:16.7]} 51...
Kc5 {[%clk 0:00:39.1]} 52. b4+ {[%clk 0:01:17.9]} 52... Kc6 {[%clk 0:00:36.5]}
53. Kb3 {[%clk 0:01:18.7]} 53... Rf3 {[%clk 0:00:33.7]} 54. c4 {[%clk
0:01:18.9]} 54... Rf1 {[%clk 0:00:24.4]} 55. Kc3 {[%clk 0:01:05.6]} 55... Rf2
{[%clk 0:00:23]} 56. cxd5+ {[%clk 0:00:55.8]} 56... exd5 {[%clk 0:00:23.3]} 57.
b5+ {[%clk 0:00:56.9]} 57... Kc5 {[%clk 0:00:19.3]} 58. b6 {[%clk 0:00:56.5]}
58... Kxb6 {[%clk 0:00:15.7]} 59. Rxd5 {[%clk 0:00:57.3]} 59... Rxf4 {[%clk
0:00:16.2]} 60. Rh5 {[%clk 0:00:52.1]} 60... Kc6 {[%clk 0:00:16.1]} 61. d4
{[%clk 0:00:53]} 61... Kd6 {[%clk 0:00:14.4]} 62. Kc4 {[%clk 0:00:53.8]} 62...
Rf6 {[%clk 0:00:12.6]} 63. Ra5 {[%clk 0:00:54.4]} 63... Kd7 {[%clk 0:00:12.8]}
64. Ra7+ {[%clk 0:00:53]} 64... Kd8 {[%clk 0:00:13.1]} 65. Kc5 {[%clk
0:00:53.8]} 65... Rf5+ {[%clk 0:00:14.2]} 66. Kd6 {[%clk 0:00:53.6]} 66... Rf6+
{[%clk 0:00:15.2]} 67. Ke5 {[%clk 0:00:54.7]} 67... Rb6 {[%clk 0:00:15.3]} 68.
d5 {[%clk 0:00:54.4]} 68... Rh6 {[%clk 0:00:15.6]} 69. Kd4 {[%clk 0:00:53.2]}
69... Rg6 {[%clk 0:00:16.3]} 70. Kc5 {[%clk 0:00:53.7]} 70... Rh6 {[%clk
0:00:17]} 71. d6 {[%clk 0:00:54.3]} 71... Rh1 {[%clk 0:00:17.5]} 72. Ra8+ {[%clk
0:00:54.5]} 72... Kd7 {[%clk 0:00:17.8]} 73. Ra7+ {[%clk 0:00:55.9]} 73... Kd8
{[%clk 0:00:19]} 74. Kd5 {[%clk 0:00:55.9]} 74... Rd1+ {[%clk 0:00:18.8]} 75.
Ke6 {[%clk 0:00:57]} 75... Re1+ {[%clk 0:00:19.8]} 1/2-1/2

[Event "*** MasterClass Titled Tuesday Blitz"]
[Site "Chess.com"]
[Date "2017.08.01"]
[Round "2"]
[White "Incognito_Knight"]
[Black "popov_m"]
[Result "0-1"]
[WhiteElo "2366"]
[BlackElo "2422"]
[TimeControl "180+2"]
[EndTime "13:25:39 PDT"]
[Termination "popov_m won by resignation"]

1. e4 {[%clk 0:03:01.9]} 1... g6 {[%clk 0:02:59]} 2. d4 {[%clk 0:03:02.6]} 2...
Bg7 {[%clk 0:03:00.7]} 3. Nc3 {[%clk 0:03:03.6]} 3... d6 {[%clk 0:03:00.6]} 4.
f4 {[%clk 0:03:04.5]} 4... Nf6 {[%clk 0:03:00.5]} 5. Nf3 {[%clk 0:03:04.6]} 5...
O-O {[%clk 0:03:02.1]} 6. Bd3 {[%clk 0:03:05]} 6... Nc6 {[%clk 0:03:00.2]} 7. e5
{[%clk 0:03:05.5]} 7... dxe5 {[%clk 0:03:00.5]} 8. fxe5 {[%clk 0:03:07.4]} 8...
Nh5 {[%clk 0:03:01.5]} 9. Ne2 {[%clk 0:03:07.5]} 9... Bg4 {[%clk 0:02:48.1]} 10.
Be3 {[%clk 0:02:59]} 10... Bxf3 {[%clk 0:02:45.6]} 11. gxf3 {[%clk 0:02:59.9]}
11... f6 {[%clk 0:02:45.9]} 12. e6 {[%clk 0:02:46.1]} 12... f5 {[%clk 0:02:38]}
13. Bc4 {[%clk 0:02:39.9]} 13... Na5 {[%clk 0:02:07.1]} 14. Qd3 {[%clk
0:02:27.2]} 14... Nxc4 {[%clk 0:01:48.9]} 15. Qxc4 {[%clk 0:02:29.1]} 15... Qd6
{[%clk 0:01:49.6]} 16. O-O-O {[%clk 0:02:26]} 16... b5 {[%clk 0:01:43.2]} 17.
Qb3 {[%clk 0:02:10.5]} 17... a5 {[%clk 0:01:37.9]} 18. Nc3 {[%clk 0:02:11.1]}
18... c6 {[%clk 0:01:36]} 19. a4 {[%clk 0:01:56.5]} 19... Rfb8 {[%clk 0:01:32]}
20. axb5 {[%clk 0:01:52.6]} 20... cxb5 {[%clk 0:01:25.8]} 21. Nxb5 {[%clk
0:01:14.4]} 21... a4 {[%clk 0:00:55.1]} 22. Nxd6 {[%clk 0:01:04.4]} 22... axb3
{[%clk 0:00:54.1]} 23. Nc4 {[%clk 0:01:05.8]} 23... f4 {[%clk 0:00:42]} 24. Bf2
{[%clk 0:01:02.6]} 24... Nf6 {[%clk 0:00:30.4]} 25. c3 {[%clk 0:00:49.8]} 25...
Ra4 {[%clk 0:00:26.1]} 26. Ne5 {[%clk 0:00:46.6]} 26... Nd5 {[%clk 0:00:21.7]}
27. Nd7 {[%clk 0:00:45.8]} 27... Rc8 {[%clk 0:00:19.7]} 28. Nc5 {[%clk
0:00:41.2]} 28... Ra1+ {[%clk 0:00:18.8]} 29. Kd2 {[%clk 0:00:42.3]} 29... Ra2
{[%clk 0:00:20.4]} 30. Rb1 {[%clk 0:00:40.8]} 30... Nxc3 {[%clk 0:00:21.3]} 31.
Kxc3 {[%clk 0:00:39.2]} 31... Rxc5+ {[%clk 0:00:22.9]} 32. Kxb3 {[%clk
0:00:40.7]} 32... Rca5 {[%clk 0:00:24.4]} 33. Rbc1 {[%clk 0:00:28.2]} 33... Ra8
{[%clk 0:00:25.2]} 34. Rc7 {[%clk 0:00:21.5]} 34... Bf6 {[%clk 0:00:25.8]} 35.
Rhc1 {[%clk 0:00:21.8]} 35... Kg7 {[%clk 0:00:22.9]} 36. Rc8 {[%clk 0:00:22.1]}
36... R8a6 {[%clk 0:00:23.8]} 37. R1c6 {[%clk 0:00:23.2]} 37... R6a5 {[%clk
0:00:24.9]} 38. Rc5 {[%clk 0:00:23.4]} 38... Ra6 {[%clk 0:00:26]} 39. Rb5 {[%clk
0:00:24.8]} 39... Ra1 {[%clk 0:00:25.9]} 40. d5 {[%clk 0:00:25.2]} 40... Rf1
{[%clk 0:00:25.7]} 41. Rc2 {[%clk 0:00:25.9]} 41... Raa1 {[%clk 0:00:15.4]} 42.
Rb7 {[%clk 0:00:24.9]} 42... Rad1 {[%clk 0:00:13.7]} 43. Rd7 {[%clk 0:00:23]}
43... Rd3+ {[%clk 0:00:13.7]} 44. Ka2 {[%clk 0:00:20.6]} 44... Kh6 {[%clk
0:00:12.7]} 45. Bc5 {[%clk 0:00:19.7]} 45... Rfxf3 {[%clk 0:00:08.6]} 46. d6
{[%clk 0:00:17.6]} 46... exd6 {[%clk 0:00:09.1]} 47. e7 {[%clk 0:00:19]} 47...
Bxe7 {[%clk 0:00:09.4]} 48. Rxe7 {[%clk 0:00:19]} 48... dxc5 {[%clk 0:00:10.7]}
49. Rxc5 {[%clk 0:00:20.6]} 49... Rd2 {[%clk 0:00:12]} 50. Rcc7 {[%clk
0:00:21.3]} 50... Rff2 {[%clk 0:00:12.8]} 51. Rxh7+ {[%clk 0:00:20.8]} 51... Kg5
{[%clk 0:00:14.3]} 52. Rc5+ {[%clk 0:00:21]} 52... Kg4 {[%clk 0:00:15]} 53. h3+
{[%clk 0:00:22.5]} 53... Kg3 {[%clk 0:00:15]} 54. Rg5+ {[%clk 0:00:23.7]} 54...
Kf3 {[%clk 0:00:16.3]} 55. Rb7 {[%clk 0:00:24.6]} 55... Rg2 {[%clk 0:00:15.2]}
56. Rc5 {[%clk 0:00:18.5]} 56... Kg3 {[%clk 0:00:11.7]} 57. Rg5+ {[%clk
0:00:16.4]} 57... Kh2 {[%clk 0:00:11.2]} 58. Re5 {[%clk 0:00:16]} 58... f3
{[%clk 0:00:12.2]} 59. h4 {[%clk 0:00:05.9]} 59... f2 {[%clk 0:00:13]} 60. Rf7
{[%clk 0:00:07.4]} 60... Kg1 {[%clk 0:00:13.4]} 0-1